fUST/lending_fUST_20250909
["ID","MTS","AMOUNT","RATE_DAILY","PERIOD"]
[384434190,1757411436308,-850.93,0.00013698,2]
[384434191,1757411436318,-480.0,0.00013698,2]
[384434192,1757411436328,-157.0,0.00013698,2]
[384434193,1757411436338,-500.0,0.00013698,2]
[384434194,1757411436347,-239.08,0.00013698,2]
[384434195,1757411436356,-480.0,0.00013698,2]
[384434196,1757411436366,-488.88660644,0.00013698,2]
[384434197,1757411436375,-480.0,0.00013698,2]
[384434198,1757411436385,-480.0,0.00013698,2]
[384434199,1757411436527,-1865.94,0.00013698,2]
[384434200,1757411436537,-2415.18,0.00013698,2]
[384434201,1757411436546,-157.0,0.00013698,2]
[384434202,1757411436555,-480.0,0.00013698,2]
[384434203,1757411436564,-151.0,0.00013698,2]
[384434204,1757411436573,-480.0,0.00013698,2]
[384434205,1757411436583,-151.0,0.00013698,2]
[384434206,1757411436592,-204.25559514,0.00013698,2]
[384434207,1757411436601,-456.21957318,0.00013698,2]
[384434208,1757411436614,-23.78042682,0.00013698,2]
[384434209,1757411436624,-151.0,0.00013698,2]
[384434210,1757411436633,-151.0,0.00013698,2]
[384434211,1757411436642,-480.0,0.00013698,2]
[384434212,1757411436651,-151.0,0.00013698,2]
[384434213,1757411436661,-2424.86,0.00013698,2]
[384434214,1757411436670,-500.0,0.00013698,2]
[384434215,1757411436679,-500.0,0.00013699,2]
[384434216,1757411436688,-1447.8130946,0.00013699,2]
[384434255,1757411437837,-5636.37776302,0.00013699,2]
[384434262,1757411437885,-673.11612289,0.00013699,2]
[384434264,1757411437896,-1873.84500827,0.00013699,2]
[384434267,1757411437939,-526.46954481,0.00013699,2]
[384434299,1757411439909,-480.0,0.00013698,2]
[384434301,1757411439919,-922.42,0.00013698,2]
[384434304,1757411439930,-557.06,0.00013698,2]
[384434306,1757411439939,-1899.54,0.00013698,2]
[384434308,1757411439956,-480.0,0.00013698,2]
[384434309,1757411439969,-6905.70980161,0.00013699,2]
[384434312,1757411439978,-1204.553041,0.00013699,2]
[384434314,1757411439988,-3410.355011,0.00013699,2]
[384434315,1757411439998,-920.8869609,0.00013699,2]
[384434317,1757411440010,-151.0,0.00013699,2]
[384434320,1757411440019,-151.0,0.00013699,2]
[384434321,1757411440028,-151.0,0.00013699,2]
[384434323,1757411440038,-151.0,0.00013699,2]
[384434326,1757411440049,-151.0,0.00013699,2]
[384434328,1757411440058,-151.0,0.00013699,2]
[384434330,1757411440068,-151.0,0.00013699,2]
[384434331,1757411440077,-151.0,0.00013699,2]
[384434333,1757411440086,-151.0,0.00013699,2]
[384434335,1757411440096,-151.0,0.00013699,2]
[384434337,1757411440104,-151.0,0.00013699,2]
[384434339,1757411440114,-151.0,0.00013699,2]
[384434341,1757411440123,-323.105681,0.00013699,2]
[384434343,1757411440132,-323.105681,0.00013699,2]
[384434345,1757411440142,-323.105681,0.00013699,2]
[384434347,1757411440151,-323.105681,0.00013699,2]
[384434350,1757411440161,-323.105681,0.00013699,2]
[384434352,1757411440171,-323.105681,0.00013699,2]
[384434354,1757411440180,-323.105681,0.00013699,2]
[384434356,1757411440190,-323.105681,0.00013699,2]
[384434358,1757411440199,-323.105681,0.00013699,2]
[384434360,1757411440208,-323.105681,0.00013699,2]
[384434362,1757411440217,-323.105681,0.00013699,2]
[384434364,1757411440226,-323.105681,0.00013699,2]
[384434366,1757411440235,-323.105681,0.00013699,2]
[384434368,1757411440245,-323.105681,0.00013699,2]
[384434370,1757411440254,-323.105681,0.00013699,2]
[384434372,1757411440263,-323.105681,0.00013699,2]
[384434374,1757411440272,-17434.6401109,0.00013699,2]
[384434376,1757411440282,-151.0,0.00013699,2]
[384434378,1757411440291,-151.0,0.00013699,2]
[384434380,1757411440300,-151.0,0.00013699,2]
[384434382,1757411440310,-151.0,0.00013699,2]
[384434384,1757411440319,-151.0,0.00013699,2]
[384434386,1757411440328,-151.0,0.00013699,2]
[384434388,1757411440337,-151.0,0.00013699,2]
[384434390,1757411440347,-151.0,0.00013699,2]
[384434392,1757411440356,-151.0,0.00013699,2]
[384434394,1757411440365,-151.0,0.00013699,2]
[384434396,1757411440374,-151.0,0.00013699,2]
[384434398,1757411440384,-168.197474,0.00013699,2]
[384434400,1757411440395,-151.0,0.00013699,2]
[384434402,1757411440404,-151.0,0.00013699,2]
[384434404,1757411440414,-151.0,0.00013699,2]
[384434406,1757411440423,-154.458641,0.00013699,2]
[384434408,1757411440432,-151.0,0.00013699,2]
[384434410,1757411440442,-151.0,0.00013699,2]
[384434412,1757411440451,-165.566439,0.00013699,2]
[384434414,1757411440461,-151.0,0.00013699,2]
[384434416,1757411440470,-151.0,0.00013699,2]
[384434418,1757411440479,-277.706454,0.00013699,2]
[384434420,1757411440488,-323.105681,0.00013699,2]
[384434422,1757411440498,-323.105681,0.00013699,2]
[384434424,1757411440507,-323.105681,0.00013699,2]
[384434426,1757411440516,-323.105679,0.00013699,2]
[384434428,1757411440525,-151.0,0.00013699,2]
[384434430,1757411440534,-151.0,0.00013699,2]
[384434432,1757411440543,-500.0,0.00013699,2]
[384434434,1757411440553,-500.0,0.00013699,2]
[384434436,1757411440563,-500.0,0.00013699,2]
[384434438,1757411440573,-500.0,0.00013699,2]
[384434440,1757411440583,-500.0,0.00013699,2]
[384434442,1757411440593,-500.0,0.00013699,2]
[384434444,1757411440602,-500.0,0.00013699,2]
[384434446,1757411440612,-500.0,0.00013699,2]
[384434448,1757411440622,-500.0,0.00013699,2]
[384434450,1757411440631,-500.0,0.00013699,2]
[384434452,1757411440640,-500.0,0.00013699,2]
[384434454,1757411440652,-500.0,0.00013699,2]
[384434456,1757411440661,-500.0,0.00013699,2]
[384434458,1757411440670,-500.0,0.00013699,2]
[384434460,1757411440680,-500.0,0.00013699,2]
[384434462,1757411440689,-500.0,0.00013699,2]
[384434464,1757411440698,-500.0,0.00013699,2]
[384434466,1757411440707,-500.0,0.00013699,2]
[384434468,1757411440717,-500.0,0.00013699,2]
[384434470,1757411440726,-500.0,0.00013699,2]
[384434472,1757411440735,-500.0,0.00013699,2]
[384434474,1757411440745,-500.0,0.00013699,2]
[384434476,1757411440755,-500.0,0.00013699,2]
[384434478,1757411440764,-500.0,0.00013699,2]
[384434480,1757411440776,-500.0,0.00013699,2]
[384434482,1757411440785,-500.0,0.00013699,2]
[384434484,1757411440795,-500.0,0.00013699,2]
[384434485,1757411440803,-500.0,0.00013699,2]
[384434486,1757411440812,-500.0,0.00013699,2]
[384434487,1757411440821,-500.0,0.00013699,2]
[384434488,1757411440830,-500.0,0.00013699,2]
[384434490,1757411440840,-500.0,0.00013699,2]
[384434492,1757411440849,-500.0,0.00013699,2]
[384434494,1757411440859,-500.0,0.00013699,2]
[384434496,1757411440868,-500.0,0.00013699,2]
[384434498,1757411440878,-500.0,0.00013699,2]
[384434500,1757411440887,-500.0,0.00013699,2]
[384434502,1757411440897,-500.0,0.00013699,2]
[384434504,1757411440907,-500.0,0.00013699,2]
[384434506,1757411440917,-500.0,0.00013699,2]
[384434508,1757411440927,-500.0,0.00013699,2]
[384434510,1757411440937,-500.0,0.00013699,2]
[384434512,1757411440947,-500.0,0.00013699,2]
[384434513,1757411440959,-500.0,0.00013699,2]
[384434514,1757411440970,-500.0,0.00013699,2]
[384434515,1757411440980,-500.0,0.00013699,2]
[384434516,1757411440991,-284.09377216,0.00013699,2]
[384434517,1757411441000,-500.0,0.00013699,2]
[384434518,1757411441010,-500.0,0.00013699,2]
[384434519,1757411441019,-500.0,0.00013699,2]
[384434520,1757411441029,-500.0,0.00013699,2]
[384434521,1757411441040,-500.0,0.00013699,2]
[384434522,1757411441049,-500.0,0.00013699,2]
[384434523,1757411441058,-500.0,0.00013699,2]
[384434524,1757411441067,-500.0,0.00013699,2]
[384434525,1757411441076,-500.0,0.00013699,2]
[384434526,1757411441086,-500.0,0.00013699,2]
[384434527,1757411441095,-500.0,0.00013699,2]
[384434528,1757411441104,-500.0,0.00013699,2]
[384434529,1757411441113,-350.00000001,0.00013699,2]
[384434530,1757411441263,-500.0,0.00013699,2]
[384434531,1757411441274,-500.0,0.00013699,2]
[384434532,1757411441284,-500.0,0.00013699,2]
[384434533,1757411441293,-151.0,0.00013699,2]
[384434534,1757411441302,-309.0,0.000137,2]
[384434535,1757411441312,-1312.6426566,0.00013735,2]
[384434536,1757411441321,-168.0,0.00013743,2]
[384434537,1757411441331,-188.3411242,0.000138,2]
[384434538,1757411441341,-188.3735591,0.000138,2]
[384434539,1757411441350,-188.3411242,0.000138,2]
[384434540,1757411441359,-1312.6426566,0.00013804,2]
[384434541,1757411441369,-168.0,0.00013842,2]
[384434542,1757411441380,-1312.6426566,0.00013872,2]
[384434543,1757411441389,-529.580579,0.000139,2]
[384434544,1757411441398,-188.3411242,0.000139,2]
[384434545,1757411441408,-188.3411242,0.000139,2]
[384434546,1757411441417,-188.3411242,0.000139,2]
[384434547,1757411441427,-188.3411242,0.000139,2]
[384434548,1757411441436,-191.1953919,0.000139,2]
[384434549,1757411441445,-188.3411242,0.000139,2]
[384434550,1757411441454,-188.3411242,0.000139,2]
[384434551,1757411441464,-188.3411242,0.000139,2]
[384434552,1757411441473,-188.3411242,0.000139,2]
[384434553,1757411441482,-188.3411242,0.000139,2]
[384434554,1757411441491,-188.3411242,0.000139,2]
[384434555,1757411441501,-188.3411242,0.000139,2]
[384434556,1757411441510,-188.3411242,0.000139,2]
[384434557,1757411441519,-168.0,0.00013955,2]
[384434558,1757411441528,-300.0,0.00013971,2]
[384434559,1757411441538,-300.0,0.00013971,2]
[384434560,1757411441547,-300.0,0.00013971,2]
[384434561,1757411441557,-300.0,0.00013971,2]
[384434562,1757411441566,-300.0,0.00013971,2]
[384434563,1757411441576,-300.0,0.00013971,2]
[384434564,1757411441587,-300.0,0.00013971,2]
[384434565,1757411441597,-300.0,0.00013971,2]
[384434566,1757411441606,-300.0,0.00013971,2]
[384434567,1757411441615,-300.0,0.00013971,2]
[384434568,1757411441625,-300.0,0.00013971,2]
[384434569,1757411441638,-300.0,0.00013971,2]
[384434570,1757411441647,-300.0,0.00013971,2]
[384434571,1757411441656,-300.0,0.00013971,2]
[384434572,1757411441666,-300.0,0.00013971,2]
[384434573,1757411441676,-600.0,0.00013971,2]
[384434574,1757411441685,-160.71908655,0.00013971,2]
[384434575,1757411441693,-500.0,0.00013972,2]
[384434576,1757411441702,-187.15576169,0.00013972,2]
[384434577,1757411441710,-157.0,0.00013972,2]
[384434578,1757411441719,-500.0,0.00013972,2]
[384434579,1757411441730,-500.0,0.00013972,2]
[384434580,1757411441740,-157.0,0.00013972,2]
[384434581,1757411441749,-500.0,0.00013972,2]
[384434582,1757411441759,-480.0,0.00013972,2]
[384434583,1757411441768,-480.0,0.00013972,2]
[384434584,1757411441777,-154.56937651,0.00013972,2]
[384434585,1757411441786,-480.0,0.00013972,2]
[384434586,1757411441795,-480.0,0.00013972,2]
[384434587,1757411441806,-480.0,0.00013972,2]
[384434588,1757411441815,-480.0,0.00013972,2]
[384434589,1757411441823,-480.0,0.00013972,2]
[384434590,1757411441831,-480.0,0.00013972,2]
[384434591,1757411441841,-491.37045625,0.00013972,2]
[384434592,1757411441849,-480.0,0.00013972,2]
[384434593,1757411441857,-593.78,0.00013972,2]
[384434594,1757411441866,-308.04362484,0.00013972,2]
[384434595,1757411441873,-480.0,0.00013972,2]
[384434596,1757411441882,-480.0,0.00013972,2]
[384434597,1757411441891,-480.0,0.00013972,2]
[384434598,1757411441899,-480.0,0.00013972,2]
[384434599,1757411441908,-480.0,0.00013972,2]
[384434600,1757411441917,-480.0,0.00013972,2]
[384434601,1757411441926,-562.65589596,0.00013972,2]
[384434602,1757411441934,-480.0,0.00013972,2]
[384434603,1757411441944,-597.78641057,0.00013972,2]
[384434604,1757411441953,-480.0,0.00013972,2]
[384434605,1757411441965,-480.0,0.00013972,2]
[384434606,1757411441973,-494.49507344,0.00013972,2]
[384434607,1757411441982,-480.0,0.00013972,2]
[384434608,1757411441992,-480.0,0.00013972,2]
[384434609,1757411442002,-480.0,0.00013972,2]
[384434610,1757411442011,-273.80453058,0.00013972,2]
[384434611,1757411442020,-480.0,0.00013972,2]
[384434612,1757411442029,-480.0,0.00013972,2]
[384434613,1757411442039,-480.0,0.00013972,2]
[384434614,1757411442046,-480.0,0.00013972,2]
[384434615,1757411442054,-480.0,0.00013972,2]
[384434616,1757411442062,-449.21742689,0.00013972,2]
[384434617,1757411442071,-480.0,0.00013972,2]
[384434618,1757411442081,-370.34868356,0.00013972,2]
[384434619,1757411442091,-658.29,0.00013972,2]
[384434620,1757411442100,-480.0,0.00013972,2]
[384434621,1757411442110,-697.39,0.00013972,2]
[384434622,1757411442119,-480.0,0.00013972,2]
[384434623,1757411442128,-480.0,0.00013972,2]
[384434624,1757411442138,-566.69,0.00013972,2]
[384434625,1757411442147,-501.12076237,0.00013972,2]
[384434626,1757411442156,-480.0,0.00013972,2]
[384434627,1757411442165,-480.0,0.00013972,2]
[384434628,1757411442175,-480.0,0.00013972,2]
[384434629,1757411442184,-206.8452466,0.00013972,2]
[384434630,1757411442193,-480.0,0.00013972,2]
[384434631,1757411442202,-480.0,0.00013972,2]
[384434632,1757411442212,-188.12103086,0.00013972,2]
[384434633,1757411442222,-480.0,0.00013972,2]
[384434634,1757411442231,-654.89,0.00013972,2]
[384434635,1757411442240,-347.0101953,0.00013972,2]
[384434637,1757411442249,-480.0,0.00013972,2]
[384434638,1757411442259,-480.0,0.00013972,2]
[384434639,1757411442268,-480.0,0.00013972,2]
[384434640,1757411442278,-331.9418183,0.00013972,2]
[384434641,1757411442287,-480.0,0.00013972,2]
[384434642,1757411442297,-625.22214754,0.00013972,2]
[384434643,1757411442306,-480.0,0.00013972,2]
[384434644,1757411442315,-480.0,0.00013972,2]
[384434645,1757411442324,-480.0,0.00013972,2]
[384434646,1757411442334,-480.0,0.00013972,2]
[384434647,1757411442343,-480.0,0.00013972,2]
[384434648,1757411442352,-573.15,0.00013972,2]
[384434649,1757411442362,-480.0,0.00013972,2]
[384434650,1757411442371,-480.0,0.00013972,2]
[384434651,1757411442380,-480.0,0.00013972,2]
[384434652,1757411442390,-480.0,0.00013972,2]
[384434653,1757411442399,-565.69,0.00013972,2]
[384434654,1757411442408,-480.0,0.00013972,2]
[384434655,1757411442418,-480.0,0.00013972,2]
[384434656,1757411442427,-549.46,0.00013972,2]
[384434657,1757411442436,-480.0,0.00013972,2]
[384434658,1757411442446,-480.0,0.00013972,2]
[384434659,1757411442455,-480.0,0.00013972,2]
[384434660,1757411442464,-480.0,0.00013972,2]
[384434661,1757411442474,-480.0,0.00013972,2]
[384434662,1757411442484,-480.0,0.00013972,2]
[384434663,1757411442493,-480.0,0.00013972,2]
[384434664,1757411442503,-480.0,0.00013972,2]
[384434665,1757411442512,-514.95,0.00013972,2]
[384434667,1757411442521,-480.0,0.00013972,2]
[384434669,1757411442530,-480.0,0.00013972,2]
[384434671,1757411442540,-480.0,0.00013972,2]
[384434673,1757411442549,-480.0,0.00013972,2]
[384434675,1757411442558,-480.0,0.00013972,2]
[384434677,1757411442567,-645.75,0.00013972,2]
[384434679,1757411442576,-480.0,0.00013972,2]
[384434681,1757411442587,-480.0,0.00013972,2]
[384434683,1757411442596,-451.71159134,0.00013972,2]
[384434685,1757411442605,-480.0,0.00013972,2]
[384434687,1757411442615,-480.0,0.00013972,2]
[384434689,1757411442624,-480.0,0.00013972,2]
[384434691,1757411442633,-480.0,0.00013972,2]
[384434693,1757411442643,-600.68186447,0.00013972,2]
[384434695,1757411442652,-480.0,0.00013972,2]
[384434697,1757411442661,-937.44,0.00013972,2]
[384434698,1757411442672,-480.0,0.00013972,2]
[384434699,1757411442681,-480.0,0.00013972,2]
[384434700,1757411442691,-480.0,0.00013972,2]
[384434701,1757411442701,-480.0,0.00013972,2]
[384434702,1757411442710,-480.0,0.00013972,2]
[384434703,1757411442719,-480.0,0.00013972,2]
[384434704,1757411442729,-480.0,0.00013972,2]
[384434705,1757411442738,-480.0,0.00013972,2]
[384434706,1757411442748,-490.22513463,0.00013972,2]
[384434707,1757411442758,-480.0,0.00013972,2]
[384434708,1757411442768,-480.0,0.00013972,2]
[384434709,1757411442778,-554.63080279,0.00013972,2]
[384434710,1757411442787,-528.65136191,0.00013972,2]
[384434711,1757411442796,-544.43,0.00013972,2]
[384434712,1757411442806,-480.0,0.00013972,2]
[384434713,1757411442815,-480.0,0.00013972,2]
[384434714,1757411442824,-480.0,0.00013972,2]
[384434715,1757411442834,-480.0,0.00013972,2]
[384434716,1757411442844,-480.0,0.00013972,2]
[384434717,1757411442853,-480.0,0.00013972,2]
[384434718,1757411442863,-480.0,0.00013972,2]
[384434719,1757411442871,-480.0,0.00013972,2]
[384434720,1757411442881,-480.0,0.00013972,2]
[384434722,1757411442892,-553.83,0.00013972,2]
[384434723,1757411442902,-480.0,0.00013972,2]
[384434724,1757411442911,-480.0,0.00013972,2]
[384434726,1757411442920,-480.0,0.00013972,2]
[384434728,1757411442930,-562.63,0.00013972,2]
[384434730,1757411442939,-259.94061448,0.00013972,2]
[384434732,1757411442948,-480.0,0.00013972,2]
[384434734,1757411442958,-484.86472151,0.00013972,2]
[384434736,1757411442970,-480.0,0.00013972,2]
[384434738,1757411442980,-480.0,0.00013972,2]
[384434740,1757411442992,-480.0,0.00013972,2]
[384434742,1757411443004,-480.0,0.00013972,2]
[384434744,1757411443013,-480.0,0.00013972,2]
[384434746,1757411443023,-480.0,0.00013972,2]
[384434748,1757411443032,-480.0,0.00013972,2]
[384434750,1757411443042,-225.08754483,0.00013972,2]
[384434752,1757411443052,-480.0,0.00013972,2]
[384434754,1757411443063,-480.0,0.00013972,2]
[384434756,1757411443072,-480.0,0.00013972,2]
[384434758,1757411443081,-480.0,0.00013972,2]
[384434760,1757411443091,-480.0,0.00013972,2]
[384434762,1757411443100,-1218.66,0.00013972,2]
[384434764,1757411443109,-480.0,0.00013972,2]
[384434766,1757411443118,-480.0,0.00013972,2]
[384434768,1757411443128,-5145.89,0.00013972,2]
[384434770,1757411443138,-480.0,0.00013972,2]
[384434772,1757411443147,-480.0,0.00013972,2]
[384434774,1757411443157,-529.38,0.00013972,2]
[384434776,1757411443166,-480.0,0.00013972,2]
[384434778,1757411443176,-573.29,0.00013972,2]
[384434780,1757411443185,-480.0,0.00013972,2]
[384434782,1757411443195,-1486.32,0.00013972,2]
[384434784,1757411443205,-480.0,0.00013972,2]
[384434786,1757411443214,-480.0,0.00013972,2]
[384434788,1757411443225,-721.83,0.00013972,2]
[384434790,1757411443235,-480.0,0.00013972,2]
[384434792,1757411443245,-480.0,0.00013972,2]
[384434794,1757411443254,-613.9,0.00013972,2]
[384434796,1757411443263,-480.0,0.00013972,2]
[384434798,1757411443273,-480.0,0.00013972,2]
[384434800,1757411443283,-480.0,0.00013972,2]
[384434802,1757411443292,-531.89808887,0.00013972,2]
[384434804,1757411443301,-480.0,0.00013972,2]
[384434806,1757411443311,-480.0,0.00013972,2]
[384434808,1757411443320,-621.36,0.00013972,2]
[384434810,1757411443330,-480.0,0.00013972,2]
[384434812,1757411443340,-560.18008552,0.00013972,2]
[384434814,1757411443350,-480.0,0.00013972,2]
[384434817,1757411443360,-480.0,0.00013972,2]
[384434819,1757411443369,-961.54,0.00013972,2]
[384434821,1757411443378,-2429.87,0.00013972,2]
[384434823,1757411443388,-137.78038105,0.00013972,2]
[384434825,1757411443405,-1477.10961895,0.00013972,2]
[384434827,1757411443414,-480.0,0.00013972,2]
[384434830,1757411443424,-480.0,0.00013972,2]
[384434832,1757411443434,-480.0,0.00013972,2]
[384434834,1757411443443,-480.0,0.00013972,2]
[384434836,1757411443452,-970.88,0.00013972,2]
[384434838,1757411443461,-480.0,0.00013972,2]
[384434840,1757411443471,-739.91,0.00013972,2]
[384434842,1757411443480,-480.0,0.00013972,2]
[384434844,1757411443489,-480.0,0.00013972,2]
[384434846,1757411443499,-480.0,0.00013972,2]
[384434848,1757411443508,-480.0,0.00013972,2]
[384434850,1757411443517,-872.86,0.00013972,2]
[384434852,1757411443527,-480.0,0.00013972,2]
[384434854,1757411443536,-480.0,0.00013972,2]
[384434856,1757411443545,-480.0,0.00013972,2]
[384434858,1757411443555,-756.08,0.00013972,2]
[384434860,1757411443564,-480.0,0.00013972,2]
[384434862,1757411443573,-480.0,0.00013972,2]
[384434864,1757411443583,-849.06,0.00013972,2]
[384434866,1757411443593,-480.0,0.00013972,2]
[384434868,1757411443603,-478.36916472,0.00013972,2]
[384434870,1757411443612,-480.0,0.00013972,2]
[384434872,1757411443622,-480.0,0.00013972,2]
[384434874,1757411443631,-480.0,0.00013972,2]
[384434876,1757411443640,-480.0,0.00013972,2]
[384434878,1757411443650,-480.0,0.00013972,2]
[384434880,1757411443659,-929.28,0.00013972,2]
[384434882,1757411443668,-480.0,0.00013972,2]
[384434884,1757411443678,-5090.45121634,0.00013972,2]
[384434887,1757411443694,-368.43763188,0.00013972,2]
[384434929,1757411444083,-336.63618298,0.00013635,2]
[384434931,1757411444094,-215.4637878,0.00013972,2]
[384434984,1757411445941,-6371.27483568,0.00013972,2]
[384434985,1757411446154,-938.7425283,0.00013972,2]
[384434986,1757411446164,-480.0,0.00013972,2]
[384434987,1757411446174,-1637.95,0.00013972,2]
[384434988,1757411446184,-480.0,0.00013972,2]
[384434989,1757411446193,-272.00591444,0.00013972,2]
[384434990,1757411446203,-480.0,0.00013972,2]
[384434991,1757411446212,-480.0,0.00013972,2]
[384434992,1757411446222,-629.28,0.00013972,2]
[384434993,1757411446231,-2936.32,0.00013972,2]
[384434994,1757411446241,-730.12,0.00013972,2]
[384434995,1757411446251,-462.9310971,0.00013972,2]
[384434996,1757411446261,-480.0,0.00013972,2]
[384434997,1757411446271,-480.0,0.00013972,2]
[384434998,1757411446280,-480.0,0.00013972,2]
[384434999,1757411446290,-115.41786637,0.00013972,2]
[384435000,1757411446302,-364.58213363,0.00013972,2]
[384435001,1757411446312,-717.17,0.00013972,2]
[384435002,1757411446322,-480.0,0.00013972,2]
[384435003,1757411446331,-625.99713881,0.00013972,2]
[384435004,1757411446342,-206.12387413,0.00013972,2]
[384435005,1757411446352,-257.10660144,0.00013972,2]
[384435006,1757411446362,-480.0,0.00013972,2]
[384435007,1757411446372,-1086.85,0.00013972,2]
[384435008,1757411446381,-295.06138499,0.00013972,2]
[384435019,1757411477431,1000.0,0.00018595,20]
[384435028,1757411786331,324.65476986,0.00013053,2]
[384435029,1757411807650,-324.65476986,0.00013185,2]
[384435030,1757411809985,324.65476986,0.00013053,2]
[384435034,1757411899132,1000.0,0.00012593,2]
[384435035,1757411987731,8350.70046028,0.00013,2]
[384435036,1757411987753,10000.01,0.00013,2]
[384435037,1757411987775,10000.01,0.00013,2]
[384435038,1757411987797,10000.01,0.00013,2]
[384435039,1757411987821,10000.01,0.00013,2]
[384435040,1757411987844,10000.01,0.00013,2]
[384435041,1757411987867,10000.01,0.00013,2]
[384435042,1757411987889,10000.01,0.00013,2]
[384435043,1757411987910,10000.01,0.00013,2]
[384435044,1757411987932,10000.01,0.00013,2]
[384435045,1757411987963,89646.69299346,0.00013,2]
[384435052,1757412005995,1508.11,0.00012329,2]
[384435053,1757412016477,2245.97,0.00012329,2]
[384435054,1757412024558,420.12360322,0.00013118,2]
[384435055,1757412027208,1871.64,0.00012329,2]
[384435056,1757412033970,420.12360322,0.00013118,2]
[384435059,1757412037920,1559.7,0.00012329,2]
[384435060,1757412049370,420.12360322,0.00013118,2]
[384435061,1757412058657,420.12360322,0.00013118,2]
[384435062,1757412058945,1134.09558712,0.00012329,2]
[384435063,1757412058967,165.65441288,0.00012329,2]
[384435064,1757412069342,1083.13,0.00012329,2]
[384435065,1757412074426,420.12360322,0.00013118,2]
[384435066,1757412079760,902.61,0.00012329,2]
[384435067,1757412082958,420.12360322,0.00013118,2]
[384435068,1757412090141,752.17,0.00012329,2]
[384435069,1757412098966,420.12360322,0.00013118,2]
[384435070,1757412100563,626.81,0.00012329,2]
[384435071,1757412107106,420.12360322,0.00013118,2]
[384435073,1757412111228,522.34,0.00012329,2]
[384435081,1757412121647,435.28,0.00012329,2]
[384435082,1757412131755,420.12360322,0.00013118,2]
[384435083,1757412132489,362.74,0.00012329,2]
[384435084,1757412140009,3048.65757102,0.0001315,2]
[384435085,1757412140032,83.66176914,0.0001315,2]
[384435086,1757412142961,302.28,0.00012329,2]
[384435088,1757412153544,251.9,0.00012329,2]
[384435090,1757412155481,420.12360322,0.00013118,2]
[384435091,1757412164256,209.92,0.00012329,2]
[384435092,1757412174566,174.93,0.00012329,2]
[384435093,1757412177562,420.12360322,0.00013118,2]
[384435094,1757412185235,874.68,0.00012329,2]
[384435095,1757412200996,420.12360322,0.00013118,2]
[384435096,1757412209935,420.12360322,0.00013118,2]
[384435447,1757412373824,1200.0,0.00012591,2]
[384435450,1757412438681,1459.61398326,0.00013053,2]
[384435465,1757412613348,1459.61398326,0.00013053,2]
[384435504,1757412632125,-584.66264954,0.00013498,2]
[384435505,1757412632135,-708.96495608,0.0001352,2]
[384435507,1757412632145,-300.0,0.00013588,2]
[384435509,1757412632155,-300.0,0.00013588,2]
[384435511,1757412632164,-300.0,0.00013588,2]
[384435513,1757412632173,-551.0,0.00013588,2]
[384435515,1757412632183,-1184.0,0.00013589,2]